bitfinex-derivatives/quotes_SOLF0:USTF0_20250227
["timestamp","ask_amount","ask_price","bid_price","bid_amount"]
[1740671691532,411.17709322,139.74,139.72,21.46]
[1740671692143,411.22587883,139.74,139.72,21.46]
[1740671692343,411.22587883,139.74,139.71,0.04812471]
[1740671692538,411.22587883,139.74,139.71,28.69112471]
[1740671692739,533.53258232,139.74,139.71,0.04812471]
[1740671693941,533.53258232,139.74,139.71,21.52812471]
[1740671694244,533.53258232,139.74,139.73,7.1622]
[1740671694547,533.53258232,139.74,139.71,21.52812471]
[1740671694842,658.02019457,139.74,139.71,21.52812471]
[1740671695145,658.02019457,139.74,139.72,7.1624]
[1740671695344,658.02019457,139.74,139.72,21.46]
[1740671695746,0.04878561,139.74,139.72,21.46]
[1740671695941,0.04878561,139.74,139.73,7.1622]
[1740671696148,0.04878561,139.74,139.73,28.6222]
[1740671697047,694.01755904,139.75,139.74,7.1617]
[1740671697238,694.01755904,139.75,139.74,179.30136642]
[1740671697239,384.4391467,139.75,139.74,179.30136642]
[1740671697439,6.70662926,139.81,139.74,21.46]
[1740671697641,298.32537406,139.91,139.74,193.59966642]
[1740671697844,298.32537406,139.91,139.72,0.81381486]
[1740671698049,298.32537406,139.91,139.73,1.43133185]
[1740671698246,0.05396876,139.83,139.8,0.05432098]
[1740671698444,6.876e-05,139.83,139.81,12.2]
[1740671698651,298.32537406,139.86,139.81,12.2]
[1740671699658,0.04862618,139.85,139.82,0.04637229]
[1740671700459,0.04862618,139.85,139.84,237.37849298]
[1740671702160,228.61114103,139.85,139.84,237.37849298]
[1740671702357,0.04862618,139.85,139.84,237.37849298]
[1740671702759,200.3874,139.93,139.84,235.82688133]
[1740671702960,42.93464262,139.88,139.84,235.82688133]
[1740671703166,49.64657188,139.91,139.84,235.82688133]
[1740671703360,35.77994262,139.89,139.84,235.82688133]
[1740671703561,7.156,139.85,139.84,235.82688133]
[1740671703866,56.80257188,139.85,139.84,214.21618133]
[1740671704062,178.64987938,139.85,139.84,122.06548133]
[1740671704465,0.05154154,139.86,139.84,122.06548133]
[1740671705060,7.20744154,139.86,139.84,122.06548133]
[1740671705264,210.663,139.93,139.84,122.06548133]
[1740671705466,6.88993641,139.87,139.84,122.06548133]
[1740671705665,7.156,139.85,139.84,122.06548133]
[1740671706067,210.663,139.93,139.84,122.06548133]
[1740671706366,7.1548,139.86,139.85,89.69728578]
[1740671706764,210.663,139.93,139.85,89.69728578]
[1740671706965,0.0465815,139.87,139.85,89.69728578]
[1740671707272,7.1532,139.9,139.88,0.04776208]
[1740671707459,194.77287938,139.93,139.88,0.04776208]
[1740671707662,0.04889601,139.87,139.85,89.69728578]
[1740671707965,7.1548,139.86,139.85,89.7452987]
[1740671708869,7.1548,139.86,139.85,32.57585862]
[1740671709073,12.2,139.94,139.85,0.04801292]
[1740671709364,6.88993641,139.9,139.83,286.74121929]
[1740671709572,6.88993641,139.86,139.83,286.74121929]
[1740671709875,6.88993641,139.86,139.85,95.96978319]
[1740671710171,158.50854932,139.86,139.85,95.96978319]
[1740671710565,0.04958678,139.87,139.85,95.96978319]
[1740671710767,158.5581361,139.87,139.85,285.62641473]
[1740671710967,165.44807251,139.87,139.85,285.62641473]
[1740671711265,0.04958678,139.87,139.85,285.62641473]
[1740671711670,12.2,139.94,139.85,285.62641473]
[1740671711971,6.88993641,139.92,139.85,285.62641473]
[1740671712171,6.88993641,139.9,139.85,285.62641473]
[1740671712374,6.88993641,139.91,139.85,285.62641473]
[1740671712569,6.88993641,139.92,139.85,285.62641473]
[1740671712766,0.04779884,139.89,139.87,0.05126387]
[1740671712970,6.88993641,139.91,139.87,0.05126387]
[1740671713172,0.05126513,139.89,139.87,0.05126387]
[1740671713372,6.88993641,139.88,139.87,0.05126387]
[1740671713866,165.39848573,139.88,139.86,250.77717333]
[1740671714063,6.88993641,139.87,139.86,247.71687333]
[1740671714371,6.88993641,139.87,139.86,59.78683883]
[1740671714564,12.18,139.9,139.86,59.78683883]
[1740671714769,170.68854932,139.9,139.86,50.60893883]
[1740671714968,12.18,139.9,139.83,173.2263088]
[1740671715373,206.66,139.9,139.83,173.2263088]
[1740671715767,0.04704153,139.88,139.86,471.64167944]
[1740671715973,206.66,139.9,139.86,471.64167944]
[1740671716169,213.8129,139.9,139.86,471.64167944]
[1740671716871,206.66,139.9,139.86,471.64167944]
[1740671717073,0.05297654,139.89,139.85,0.04899431]
[1740671719073,0.05297654,139.89,139.88,7.1538]
[1740671719580,0.05297654,139.89,139.86,7.1545]
[1740671719771,0.05297654,139.89,139.85,0.04899431]
[1740671720167,0.05297654,139.89,139.88,7.1538]
[1740671720373,0.05297654,139.89,139.88,18.87475597]
[1740671721274,7.1523,139.91,139.88,18.87475597]
[1740671721476,194.48,139.91,139.88,18.87475597]
[1740671721675,7.1533,139.89,139.88,5.597e-05]
[1740671721976,7.1533,139.89,139.87,28.43141709]
[1740671721977,215.92,139.91,139.87,7.306e-05]
[1740671722173,215.92,139.91,139.86,75.81711226]
[1740671722377,0.05326957,139.9,139.88,0.04793643]
[1740671722873,7.1543,139.87,139.86,75.81711226]
[1740671723073,19.3343,139.87,139.86,75.81711226]
[1740671723272,40.7743,139.87,139.86,75.81711226]
[1740671723470,7.1549,139.86,139.78,75.81711226]
[1740671723670,12.18,139.87,139.78,75.81711226]
[1740671724076,7.1564,139.83,139.81,0.04902764]
[1740671724377,0.05433625,139.84,139.81,0.04902764]
[1740671724579,21.51433625,139.84,139.81,0.04902764]
[1740671725079,7.1569,139.82,139.81,0.04902764]
[1740671725579,28.6169,139.82,139.81,0.04902764]
[1740671726283,7.1589,139.78,139.77,7.53883162]
[1740671726577,213.9189,139.78,139.77,7.53883162]
[1740671726772,235.3789,139.78,139.77,7.53883162]
[1740671727379,7.1594,139.77,139.76,0.04559193]
[1740671727779,28.6194,139.77,139.76,0.04559193]
[1740671728173,206.76,139.78,139.76,0.04559193]
[1740671728482,235.379,139.78,139.76,0.04559193]
[1740671728875,228.22,139.78,139.76,0.04559193]
[1740671729377,235.3794,139.78,139.76,0.04559193]
[1740671729879,228.22,139.78,139.76,0.04559193]
[1740671730283,206.76,139.78,139.76,0.04559193]
[1740671730872,235.3789,139.78,139.76,0.04559193]
[1740671731480,228.22,139.78,139.76,0.04559193]
[1740671732081,206.76,139.78,139.76,0.04559193]
[1740671732584,228.22,139.78,139.76,0.04559193]
[1740671733485,7.1594,139.77,139.76,0.04559193]
[1740671733883,42.91,139.77,139.64,75.81711226]
[1740671734183,7.1611,139.74,139.64,75.95974132]
[1740671734379,7.1611,139.74,139.64,83.12564132]
[1740671734586,199.1601,139.76,139.64,75.95974132]
[1740671734786,192.0,139.76,139.64,75.95974132]
[1740671734985,192.0,139.76,139.64,75.81711226]
[1740671735187,0.04875925,139.71,139.69,0.05144368]
[1740671735587,12.24875925,139.71,139.69,0.05144368]
[1740671735983,12.24875925,139.71,139.7,7.163]
[1740671736184,5.925e-05,139.71,139.7,7.163]
[1740671736487,12.2,139.76,139.69,0.05144368]
[1740671736689,12.2,139.76,139.64,14.3317]
[1740671736884,12.2,139.76,139.61,1.8954]
[1740671737090,12.2,139.76,139.72,7.1618]
[1740671737487,0.05349428,139.75,139.73,0.05364006]
[1740671737684,12.2,139.76,139.61,1.8954]
[1740671737990,3.856e-05,139.75,139.73,0.04690528]
[1740671738190,206.76,139.78,139.77,7.1594]
[1740671738491,194.7513,139.78,139.77,7.1594]
[1740671738685,194.7,139.86,139.7,14.3258]
[1740671738893,12.2,139.85,139.7,14.3258]
[1740671739080,12.2,139.85,139.69,5.7119]
[1740671739286,0.04550809,139.79,139.76,0.04822143]
[1740671739480,12.2,139.85,139.76,0.04822143]
[1740671739692,12.2,139.85,139.69,177.85156642]
[1740671739890,12.2,139.85,139.69,5.7119]
[1740671740095,12.2,139.85,139.69,5.85452906]
[1740671740587,0.05128864,139.78,139.76,0.05249415]
[1740671740789,19.3555,139.85,139.69,5.85452906]
[1740671741085,0.05155054,139.78,139.76,0.05244262]
[1740671741491,12.2,139.85,139.76,0.14262906]
[1740671741692,0.04695874,139.78,139.76,0.05020983]
[1740671741883,7.1577,139.81,139.69,5.7119]
[1740671742087,0.04951563,139.78,139.76,0.04500662]
[1740671742283,12.24951563,139.78,139.76,0.04500662]
[1740671742690,0.04951563,139.78,139.76,0.04500662]
[1740671743392,12.2,139.84,139.76,0.04500662]
[1740671743593,12.2,139.84,139.76,0.18763568]
[1740671743894,12.2,139.84,139.76,0.04500662]
[1740671744096,12.2,139.84,139.76,0.18763568]
[1740671744292,12.2,139.84,139.76,0.04500662]
[1740671744489,7.158,139.8,139.76,0.04500662]
[1740671744690,12.2,139.84,139.76,0.04500662]
[1740671744691,0.05072828,139.81,139.76,0.04500662]
[1740671746191,7.20842828,139.81,139.76,0.04500662]
[1740671746387,0.05072828,139.81,139.76,0.04500662]
[1740671746591,0.05072828,139.81,139.76,0.18763568]
[1740671746798,7.1587,139.79,139.76,0.04500662]
[1740671746993,0.05072828,139.81,139.76,0.04500662]
[1740671749394,0.05072828,139.81,139.76,0.18763568]
[1740671749593,0.05072828,139.81,139.76,0.04500662]
[1740671749793,7.1594,139.77,139.76,0.04500662]
[1740671750493,7.08666796,139.77,139.76,6.62e-06]
[1740671752294,28.54666796,139.77,139.76,6.62e-06]
[1740671752888,18.28280229,139.77,139.76,6.62e-06]
[1740671753697,25.44220229,139.77,139.76,6.62e-06]
[1740671755098,7.1594,139.77,139.76,6.62e-06]
[1740671758206,0.04529589,139.78,139.72,4.58222265]
[1740671758405,7.1615,139.73,139.72,2.265e-05]
[1740671758606,19.3615,139.73,139.72,2.265e-05]
[1740671758805,12.2,139.73,139.72,2.265e-05]
[1740671760406,12.2,139.73,139.71,0.05043408]
[1740671762903,194.77159909,139.74,139.71,0.05043408]
[1740671763108,185.58089909,139.74,139.71,0.05043408]
[1740671763302,12.2,139.79,139.71,0.05043408]
[1740671763506,12.2,139.79,139.69,1.9896]
[1740671764004,12.2,139.79,139.69,5.30942677]
[1740671764207,0.04636195,139.75,139.73,0.04680058]
[1740671764511,0.04636195,139.75,139.73,3.36662735]
[1740671765606,0.04636195,139.75,139.73,0.04680058]
[1740671766911,0.04636195,139.75,139.64,3.9637]
[1740671767212,1.31635975,139.78,139.64,9.22512677]
[1740671767414,7.1611,139.74,139.64,9.22512677]
[1740671767610,12.2,139.79,139.64,9.22512677]
[1740671767806,7.1602,139.76,139.64,9.22512677]
[1740671768012,12.2,139.79,139.64,5.9053]
[1740671768310,0.04686479,139.71,139.69,0.05205567]
[1740671768513,12.2,139.79,139.64,5.9053]
[1740671768813,0.05096935,139.71,139.69,0.0539891]
[1740671769014,12.2,139.71,139.64,9.22512677]
[1740671769211,12.25093522,139.71,139.69,0.04744676]
[1740671769515,12.25093522,139.71,139.69,3.36738449]
[1740671770612,12.2,139.76,139.69,0.04755772]
[1740671770818,12.2,139.76,139.71,7.1624]
[1740671771010,12.2,139.76,139.64,5.9053]
[1740671771406,7.1607,139.75,139.64,9.22512677]
[1740671771612,0.04641874,139.71,139.69,0.05121463]
[1740671772014,12.2,139.79,139.69,0.05121463]
[1740671772218,109.23969064,139.81,139.64,5.9053]
[1740671772516,107.34209064,139.81,139.65,14.3288]
[1740671772907,107.34209064,139.81,139.65,17.64862677]
[1740671773212,0.05253725,139.74,139.72,0.05389027]
[1740671773408,107.34209064,139.81,139.73,7.1608]
[1740671773614,107.34209064,139.81,139.72,0.04941583]
[1740671773615,0.04800893,139.74,139.72,0.04941583]
[1740671773814,107.34209064,139.81,139.66,81.63589931]
[1740671774020,107.34209064,139.81,139.72,7.1611]
[1740671774312,107.34209064,139.81,139.66,257.0953925]
[1740671774517,107.34209064,139.81,139.73,7.1606]
[1740671774811,119.54209064,139.81,139.66,253.77556573]
[1740671775215,0.04901321,139.75,139.72,7.21476932]
[1740671775411,119.54209064,139.81,139.72,3.31982677]
[1740671775611,0.04622222,139.75,139.72,3.3698909]
[1740671775814,119.54209064,139.81,139.72,3.31982677]
[1740671776020,0.04680836,139.75,139.72,0.0481489]
[1740671776221,12.2,139.74,139.72,0.05363988]
[1740671776420,12.2,139.73,139.67,75.8563587]
[1740671776622,12.2,139.73,139.72,0.04874674]
[1740671776811,0.0528807,139.71,139.67,79.17618547]
[1740671777015,12.2,139.73,139.67,75.8563587]
[1740671777315,0.05334918,139.7,139.68,0.05442028]
[1740671777616,12.2,139.77,139.68,0.05442028]
[1740671777817,12.2,139.77,139.67,2.0136]
[1740671778215,107.34209064,139.81,139.67,2.0136]
[1740671778516,12.2,139.8,139.67,2.0136]
[1740671778718,0.04402357,139.75,139.73,0.04933004]
[1740671778917,196.7272,139.82,139.73,0.04933004]
[1740671778918,196.7272,139.82,139.73,7.20903004]
[1740671779122,208.9272,139.82,139.65,12.2]
[1740671779420,208.9272,139.82,139.65,184.33966642]
[1740671779618,206.94,139.82,139.66,14.3272]
[1740671780113,206.94,139.82,139.74,7.1592]
[1740671780511,206.94,139.82,139.77,0.04581014]
[1740671780711,206.94,139.82,139.69,75.8563587]
[1740671780914,206.94,139.82,139.78,0.04854746]
[1740671781123,206.94,139.82,139.75,7.1586]
[1740671781316,206.94,139.82,139.79,0.05045258]
[1740671781719,206.94,139.82,139.69,75.8563587]
[1740671782010,1.9875,139.81,139.69,79.17618547]
[1740671782926,0.05035106,139.76,139.74,0.04820344]
[1740671783215,12.2,139.75,139.73,3.54385932]
[1740671783421,12.2,139.75,139.71,75.8563587]
[1740671783621,12.2,139.75,139.71,69.7339587]
[1740671784118,7.1606,139.72,139.71,69.7339587]
[1740671784528,0.04964432,139.74,139.71,69.7339587]
[1740671785118,7.1601,139.73,139.71,69.7339587]
[1740671785318,0.04964432,139.74,139.71,69.7339587]
[1740671786122,0.04964432,139.74,139.71,73.05378547]
[1740671786318,7.1606,139.72,139.71,73.05378547]
[1740671786625,0.04964432,139.74,139.7,0.05174956]
[1740671787126,7.1611,139.71,139.7,0.05174956]
[1740671788432,21.48,139.71,139.58,113.72566839]
[1740671788620,192.0,139.73,139.58,113.72566839]
[1740671788621,194.74,139.7,139.58,121.07119516]
[1740671788823,7.1648,139.64,139.58,117.75136839]
[1740671789030,12.2,139.64,139.58,117.75136839]
[1740671789225,12.2,139.64,139.59,113.72566839]
[1740671789636,0.04671052,139.63,139.6,0.04922892]
[1740671789834,8.88017323,139.64,139.6,0.04922892]
[1740671790036,12.2,139.69,139.6,0.04922892]
[1740671790333,12.2,139.69,139.59,113.72566839]
[1740671791030,0.05151506,139.65,139.63,0.04570645]
[1740671791225,191.6769,139.7,139.63,0.04570645]
[1740671791430,12.2,139.74,139.63,0.04570645]
[1740671791633,12.2,139.74,139.59,285.86533481]
[1740671792126,12.2,139.74,139.59,177.88169431]
[1740671792326,12.2,139.74,139.65,0.05435429]
[1740671792533,0.04882404,139.68,139.65,0.05435429]
[1740671792730,0.04749326,139.68,139.65,0.05484612]
[1740671792935,194.74,139.78,139.65,21.53484612]
[1740671793134,194.74,139.78,139.66,4.0385]
[1740671793937,194.74,139.78,139.74,7.1592]
[1740671794130,194.74,139.78,139.71,0.04828363]
[1740671794438,194.74,139.78,139.75,7.1586]
[1740671794737,194.74,139.78,139.73,0.04513627]
[1740671795240,194.74,139.78,139.74,7.1592]
[1740671795440,194.74,139.78,139.74,10.9096]
[1740671795734,194.74,139.78,139.74,3.7504]
[1740671795941,12.18,139.84,139.74,3.7504]
[1740671796442,194.72,139.86,139.78,0.04553897]
[1740671796940,194.72,139.86,139.81,7.1559]
[1740671797341,194.72,139.86,139.82,5.7518]
[1740671797541,194.72,139.86,139.82,5.79947134]
[1740671799335,194.72,139.86,139.82,2.04907134]
[1740671799540,194.72,139.86,139.82,0.04767134]
[1740671800048,7.154,139.85,139.82,0.04767134]
[1740671800941,7.1544,139.84,139.82,0.04767134]
[1740671801443,7.1541,139.85,139.82,0.04767134]
[1740671802535,7.1545,139.84,139.82,0.04767134]
[1740671803043,7.1542,139.85,139.82,0.04767134]
[1740671803342,194.72,139.86,139.82,0.04767134]
[1740671803543,7.1546,139.84,139.82,0.04767134]
[1740671803744,194.72,139.86,139.82,0.04767134]
[1740671804139,7.1547,139.84,139.82,0.04767134]
[1740671805346,194.72,139.86,139.82,0.04767134]
[1740671805547,7.1549,139.83,139.82,0.04767134]
[1740671805744,194.72,139.86,139.74,5.8801]
[1740671805944,0.05228674,139.84,139.74,5.8801]
[1740671806152,1.9477,139.85,139.74,5.8801]
[1740671806347,1.9477,139.85,139.73,29.03698922]
[1740671807051,0.05235808,139.8,139.78,0.04657528]
[1740671807249,7.157,139.79,139.78,0.04657528]
[1740671809142,12.23235808,139.8,139.78,0.04657528]
[1740671810338,7.157,139.79,139.78,0.04657528]
[1740671810746,7.157,139.79,139.78,7.528e-05]
[1740671816349,7.20905808,139.8,139.78,7.528e-05]
[1740671816545,0.05235808,139.8,139.78,7.528e-05]
[1740671816946,7.157,139.79,139.78,7.528e-05]
[1740671817152,0.05235808,139.8,139.78,7.528e-05]
[1740671818047,0.05235808,139.8,139.79,7.157]
[1740671818352,194.72,139.86,139.78,21.46007528]
[1740671818650,194.72,139.86,139.79,3.8972]
[1740671818945,194.72,139.86,139.81,7.1557]
[1740671819344,194.72,139.86,139.82,0.05227306]
[1740671819545,0.0465,139.85,139.82,0.05227306]
[1740671820548,7.1549,139.83,139.82,0.05227306]
[1740671821151,0.0465,139.85,139.72,3.8617]
[1740671821347,194.72,139.86,139.72,5.8079]
[1740671821549,12.18,139.88,139.72,5.8079]
[1740671822351,0.04830034,139.81,139.79,0.0491994]
[1740671822648,12.18,139.88,139.72,5.8079]
[1740671822848,12.18,139.88,139.72,177.94756642]
[1740671823255,1.9838,139.93,139.72,177.94756642]
[1740671823454,1.9838,139.93,139.73,1.18761201]
[1740671823854,7.272e-05,139.84,139.83,7.1549]
[1740671824044,194.64,139.94,139.83,7.1549]
[1740671824245,194.64,139.94,139.78,26.4945]
[1740671824458,7.1517,139.9,139.78,198.63416642]
[1740671824652,194.64,139.94,139.78,184.31966642]
[1740671824954,1.9838,139.93,139.85,0.05351434]
[1740671825247,1.9838,139.93,139.78,184.31966642]
[1740671825248,1.9838,139.93,139.78,172.13966642]
[1740671825449,1.9838,139.93,139.88,5.682e-05]
[1740671825654,1.9838,139.93,139.78,7.1575]
[1740671826051,7.1553,139.83,139.78,7.1575]
[1740671826259,12.18,139.86,139.74,172.13966642]
[1740671826551,12.18,139.86,139.79,29.03698922]
[1740671826552,7.156,139.81,139.79,29.03698922]
[1740671826748,0.05092079,139.81,139.79,29.08485721]
[1740671829862,7.1565,139.8,139.79,29.08485721]
[1740671830059,7.1565,139.8,139.79,26.02355721]
[1740671830257,0.05092079,139.81,139.74,28.6897019]
[1740671830258,7.1592,139.75,139.74,28.6897019]
[1740671830559,12.18,139.79,139.74,28.6897019]
[1740671831361,0.04926337,139.78,139.75,0.0513072]
[1740671831757,12.18,139.79,139.75,0.0513072]
[1740671831966,194.58,139.82,139.75,0.0513072]
[1740671832261,12.18,139.86,139.75,0.0513072]
[1740671832461,12.18,139.86,139.74,28.6897019]
[1740671833055,0.04977734,139.81,139.79,7.20884678]
[1740671833763,0.04977734,139.81,139.8,7.1565]
[1740671833959,12.18,139.86,139.79,0.05224678]
[1740671835354,12.18,139.86,139.79,7.20904678]
[1740671835960,12.18,139.86,139.79,7.20914678]
[1740671836360,12.18,139.86,139.79,0.05224678]
[1740671836554,19.3337,139.86,139.79,0.05224678]
[1740671837259,12.18,139.86,139.79,0.05224678]
[1740671837760,2.2438,139.88,139.79,0.05224678]
[1740671838062,194.6,139.9,139.86,7.153]
[1740671838258,194.6,139.9,139.82,0.05079471]
[1740671838462,194.6,139.9,139.84,7.154]
[1740671838764,194.6,139.9,139.85,0.04541547]
[1740671838968,2.1019,139.89,139.85,0.04541547]
[1740671839163,9.2538,139.89,139.85,0.04541547]
[1740671839365,0.9464,139.88,139.75,2.184]
[1740671839863,0.9464,139.88,139.76,7.1582]
[1740671840364,0.04541547,139.83,139.81,0.05169568]
[1740671840663,12.16,139.85,139.81,0.05169568]
[1740671840864,0.04541547,139.83,139.81,0.05169568]
[1740671844266,0.04541547,139.83,139.72,11.76267305]
[1740671844458,12.16,139.85,139.72,18.92267305]
[1740671844858,12.16,139.85,139.72,11.76267305]
[1740671845060,192.0,139.84,139.72,9.59117305]
[1740671845462,0.04895189,139.79,139.77,0.04957003]
[1740671845668,12.16,139.78,139.72,9.59117305]
[1740671846173,206.78,139.78,139.72,9.59117305]
[1740671846577,206.78,139.78,139.69,9.59117305]
[1740671846878,0.04886124,139.76,139.74,1.913e-05]
[1740671847063,7.159,139.75,139.74,1.913e-05]
[1740671847468,7.1616,139.7,139.69,4.20139218]
[1740671847770,19.3216,139.7,139.69,4.20139218]
[1740671848072,12.16,139.7,139.69,4.20139218]
[1740671849162,19.3216,139.7,139.69,4.20139218]
[1740671849368,12.16,139.7,139.69,4.20139218]
[1740671849674,19.3216,139.7,139.69,4.20139218]
[1740671850174,12.16,139.7,139.68,0.04775489]
[1740671851477,7.1621,139.69,139.68,0.04775489]
[1740671852782,12.16,139.7,139.68,0.04775489]
[1740671853278,0.05162479,139.71,139.7,7.1616]
[1740671853469,0.05162479,139.71,139.69,2.2272]
[1740671853869,0.05162479,139.71,139.7,7.1616]
[1740671854165,12.18,139.76,139.69,23.7072]
[1740671854370,12.18,139.76,139.69,2.2272]
[1740671854769,93.69292302,139.88,139.69,2.2272]
[1740671854972,12.18,139.8,139.69,2.2272]
[1740671855275,0.05122592,139.75,139.72,0.0485954]
[1740671855476,7.1566,139.8,139.72,7.2088954]
[1740671855769,194.72,139.86,139.72,0.0485954]
[1740671855963,7.1556,139.82,139.69,174.36686642]
[1740671856163,12.18,139.84,139.69,174.36686642]
[1740671856368,194.72,139.86,139.69,2.2272]
[1740671856569,0.0522986,139.78,139.75,0.0491048]
[1740671856770,194.72,139.86,139.75,0.0491048]
[1740671856981,194.72,139.86,139.69,174.36686642]
[1740671857878,0.041151,139.79,139.76,0.04755355]
[1740671858072,0.041151,139.79,139.69,174.36686642]
[1740671858073,194.72,139.86,139.69,174.36686642]
[1740671858376,0.041151,139.79,139.76,0.05121567]
[1740671858574,194.72,139.86,139.7,7.6892176]
[1740671858869,0.041151,139.79,139.76,0.04742816]
[1740671859076,194.72,139.86,139.7,7.6892176]
[1740671859276,0.041151,139.79,139.76,0.05016302]
[1740671859579,7.1564,139.81,139.7,7.6892176]
[1740671859779,0.041151,139.79,139.76,0.05239851]
[1740671860072,0.041151,139.79,139.7,7.6892176]
[1740671860073,194.72,139.86,139.7,7.6892176]
[1740671860273,194.72,139.86,139.7,179.82888402]
[1740671860982,7.1574,139.79,139.72,7.1602]
[1740671861277,2.0622,139.85,139.7,7.6892176]
[1740671861478,2.0622,139.85,139.74,0.0548782]
[1740671861672,2.0622,139.85,139.7,7.6892176]
[1740671861872,2.0622,139.85,139.78,0.0491731]
[1740671863170,7.157,139.79,139.78,0.0491731]
[1740671864675,7.157,139.79,139.78,7.31e-05]
[1740671868479,0.0491,139.8,139.78,7.31e-05]
[1740671870286,201.8736,139.86,139.78,7.31e-05]
[1740671870478,194.72,139.86,139.78,7.31e-05]
[1740671870879,7.1542,139.85,139.78,7.31e-05]
[1740671871573,201.8736,139.86,139.81,7.1559]
[1740671871773,194.72,139.86,139.81,7.1559]
[1740671872283,201.8738,139.86,139.82,0.05277331]
[1740671872482,194.72,139.86,139.82,0.05277331]
[1740671872782,7.154,139.85,139.82,0.05277331]
[1740671873979,194.72,139.86,139.82,0.05277331]
[1740671874585,7.1546,139.84,139.82,0.05277331]
[1740671875787,194.72,139.86,139.82,0.05277331]
[1740671876383,7.1549,139.83,139.82,0.05277331]
[1740671876786,201.8736,139.86,139.82,0.05277331]
[1740671876989,194.72,139.86,139.82,0.05277331]
[1740671877197,194.72,139.86,139.82,7.20797331]
[1740671877389,194.72,139.86,139.82,0.05277331]
[1740671877590,194.72,139.86,139.83,7.1549]
[1740671877790,194.72,139.86,139.82,0.05277331]
[1740671878387,12.16,139.9,139.82,0.05277331]
[1740671878785,7.1522,139.89,139.84,7.1543]
[1740671878991,12.16,139.9,139.83,2.3777]
[1740671879188,12.16,139.9,139.85,0.05243684]
[1740671879892,7.1532,139.87,139.85,0.05243684]
[1740671880487,194.6,139.94,139.85,0.05243684]
[1740671880683,194.6,139.94,139.84,4.7213]
[1740671880882,7.1505,139.92,139.88,0.04802519]
[1740671881391,7.1504,139.92,139.88,0.04802519]
[1740671881790,194.6,139.94,139.88,0.04802519]
[1740671881990,7.1519,139.89,139.88,0.04802519]
[1740671882685,194.6,139.94,139.88,0.04802519]
[1740671883194,7.1507,139.92,139.88,0.04802519]
[1740671883394,194.6,139.94,139.88,0.04802519]
[1740671884594,7.1519,139.89,139.88,0.04802519]
[1740671885390,194.6,139.94,139.88,0.04802519]
[1740671885789,2.1869,140.0,139.88,0.04802519]
[1740671885989,2.1869,140.0,139.84,4.7213]
[1740671886293,2.1869,140.0,139.93,0.05327464]
[1740671886890,7.1493,139.94,139.93,0.05327464]
[1740671887194,7.1493,139.94,139.93,7.464e-05]
[1740671888594,11.842,139.94,139.93,7.464e-05]
[1740671889992,227.782,139.94,139.93,7.464e-05]
[1740671890391,206.342,139.94,139.93,7.464e-05]
[1740671890889,227.782,139.94,139.93,7.464e-05]
[1740671891297,229.09661202,139.94,139.93,7.464e-05]
[1740671891797,227.782,139.94,139.93,7.464e-05]
[1740671892403,229.09660593,139.94,139.93,7.464e-05]
[1740671893698,218.502,139.94,139.93,7.464e-05]
[1740671894089,206.66,139.94,139.93,7.464e-05]
[1740671894497,194.5,139.94,139.93,7.464e-05]
[1740671895300,201.6493,139.94,139.93,7.464e-05]
[1740671896902,203.8709,139.94,139.93,7.464e-05]
[1740671897402,201.6493,139.94,139.93,7.464e-05]
[1740671897803,194.5,139.94,139.93,7.464e-05]
[1740671898100,0.04744905,139.95,139.93,7.464e-05]
[1740671898804,0.04744905,139.95,139.94,7.1493]
[1740671898995,12.16,140.01,139.94,2.24]
[1740671899505,194.5,140.02,139.94,2.24]
[1740671899700,194.5,140.02,139.95,4.5959]
[1740671899896,201.6454,140.02,139.96,7.1482]
[1740671900093,194.5,140.02,139.97,0.04902064]
[1740671900503,7.146,140.01,139.97,0.04902064]
[1740671900803,194.5,140.02,139.97,0.04902064]
[1740671902402,7.1473,139.98,139.97,0.04902064]
[1740671903004,7.1466,140.0,139.97,0.04902064]
[1740671903195,194.5,140.02,139.97,0.04902064]
[1740671905103,7.1473,139.98,139.97,0.04902064]
[1740671905501,194.5,140.02,139.97,21.48902064]
[1740671905807,194.5,140.02,139.97,0.04902064]